[Event "Israel Open Championship 2023"]
[Site "Acre"]
[Date "2024.01.29"]
[Round "9.6"]
[White "Ben Ari, Yannay"]
[Black "Parkhov, Yair"]
[Result "1/2-1/2"]
[ECO "D35"]
[WhiteElo "2417"]
[BlackElo "2495"]
[Annotator "RC"]
[PlyCount "122"]
[EventDate "2024.01.18"]
[EventType "swiss"]
[EventCountry "ISR"]
[SourceTitle "playchess.com"]
[Source "ChessBase"]
[SourceQuality "1"]
[TimeControl "5400+30"]

1. c4 {[%emt 0:00:30]} e6 {[%emt 0:00:46]} 2. Nc3 {[%emt 0:01:45]} d5 {[%emt 0:00:37]} 3. d4 {[%emt 0:00:07]} Nf6 {[%emt 0:00:05]} 4. cxd5 {[%emt 0:00:44]} exd5 {[%emt 0:00:04]} 5. Bg5 {[%emt 0:00:09]} c6 {[%emt 0:00:04]} 6. e3 {[%emt 0:00:05]} h6 {[%emt 0:00:06]} 7. Bh4 {[%emt 0:00:05]} Be7 {[%emt 0:00:05]} 8. Bd3 {[%emt 0:00:09]} O-O {[%emt 0:00:08]} 9. Nge2 {[%emt 0:00:43]} a5 {[%emt 0:11:52]} 10. O-O {[%emt 0:00:36]} Na6 {[%emt 0:00:07]} 11. Rc1 {[%emt 0:09:02]} Nc7 {[%emt 0:06:12]} 12. f3 {[%emt 0:08:02]} Ne6 {[%emt 0:07:21]} 13. Kh1 {[%emt 0:00:45]} Ng5 {[%emt 0:07:19]} 14. Qc2 {[%emt 0:05:14]} Re8 {[%emt 0:13:26]} 15. Bf2 {[%emt 0:18:43]} c5 {[%emt 0:06:14]} 16. b3 {[%emt 0:13:50]} b6 {[%emt 0:18:17]} 17. a4 {[%emt 0:01:44]} Bb7 {[%emt 0:01:54]} 18. Qb2 {[%emt 0:03:08]} Ne6 {[%emt 0:06:03]} 19. Nb5 {[%emt 0:02:50]} Rc8 {[%emt 0:01:48]} 20. dxc5 {[%emt 0:04:20]} bxc5 {[%emt 0:01:23]} 21. Rfd1 {[%emt 0:00:21]} Qb6 {[%emt 0:01:08]} 22. Ng3 {[%emt 0:00:09]} g6 {[%emt 0:06:11]} 23. Bf1 {[%emt 0:21:23]} Nh7 {[%emt 0:01:18]} 24. Qb1 {[%emt 0:01:32]} h5 {[%emt 0:00:49]} 25. Ne2 {[%emt 0:00:43]} Red8 {[%emt 0:02:50]} 26. Rd2 {[%emt 0:02:23]} Bg5 {[%emt 0:02:29]} 27. f4 {[%emt 0:00:37]} Bh6 {[%emt 0:00:54]} 28. Rcd1 {[%emt 0:00:25]} Nf6 {[%emt 0:01:53]} 29. Nec3 {[%emt 0:02:59]} Ng4 {[%emt 0:01:50]} 30. f5 {[%emt 0:01:34]} Nf8 {[%emt 0:00:39]} 31. fxg6 {[%emt 0:00:30]} Qxg6 {[%emt 0:00:18]} 32. Bd3 {[%emt 0:00:12]} Qg7 {[%emt 0:00:19]} 33. Bg1 {[%emt 0:01:08]} d4 {[%emt 0:01:03]} 34. Be4 {[%emt 0:00:22]} Ba6 {[%emt 0:01:19]} 35. Nd5 {[%emt 0:00:14]} Bxb5 {[%emt 0:00:31]} 36. Ne7+ {[%emt 0:00:40]} Kh8 {[%emt 0:00:02]} 37. Nf5 {[%emt 0:00:32]} Qe5 {[%emt 0:00:31]} 38. Nxh6 {[%emt 0:00:18]} Nxh6 {[%emt 0:00:09]} 39. exd4 {[%emt 0:00:20]} cxd4 {[%emt 0:00:57]} 40. Rxd4 {[%emt 0:00:32]} Bd7 {[%emt 0:00:48]} 41. Rd5 {[%emt 0:00:00]} Qg7 {[%emt 0:00:00]} 42. Bd4 {[%emt 0:00:00]} f6 {[%emt 0:00:00]} 43. Qa1 {[%emt 0:00:00]} Rc6 {[%emt 0:00:00]} 44. Rxd7 {[%emt 0:00:00]} Rxd7 {[%emt 0:00:00]} 45. Bxc6 {[%emt 0:00:00]} Rd6 {[%emt 0:00:00]} 46. Bf3 {[%emt 0:00:00]} h4 {[%emt 0:00:00]} 47. Bf2 {[%emt 0:00:00]} Rxd1+ {[%emt 0:00:00]} 48. Qxd1 {[%emt 0:00:00]} h3 {[%emt 0:00:00]} 49. g3 {[%emt 0:00:00]} Nd7 {[%emt 0:00:00]} 50. Bd4 {[%emt 0:00:00]} Qg5 {[%emt 0:00:00]} 51. Kg1 {[%emt 0:03:27]} Ne5 {[%emt 0:00:00]} 52. Be2 {[%emt 0:00:20]} Nhf7 {[%emt 0:00:00]} 53. Qf1 {[%emt 0:01:01]} Kg7 {[%emt 0:00:00]} 54. Qf4 {[%emt 0:02:34]} Qg6 {[%emt 0:00:00]} 55. Bf1 {[%emt 0:00:28]} Qb1 {[%emt 0:00:00]} 56. Qe3 {[%emt 0:00:09]} Qf5 {[%emt 0:00:00]} 57. Be2 {[%emt 0:00:36]} Qb1+ {[%emt 0:00:00]} 58. Bf1 {[%emt 0:00:01]} Qf5 {[%emt 0:00:00]} 59. Be2 {[%emt 0:01:18]} Qb1+ {[%emt 0:00:00]} 60. Bf1 {[%emt 0:00:01]} Qd1 {[%emt 0:04:05]} 61. Bc3 {[%emt 0:00:26]} Ng5 {[%emt 0:01:54]} 1/2-1/2

[Event "Israel Open Championship 2023"]
[Site "Acre"]
[Date "2024.01.29"]
[Round "9.7"]
[White "Kobo, Ori"]
[Black "Sherman, Raem"]
[Result "1-0"]
[ECO "E06"]
[WhiteElo "2541"]
[BlackElo "2295"]
[Annotator "TA"]
[PlyCount "105"]
[EventDate "2024.01.18"]
[EventType "swiss"]
[EventCountry "ISR"]
[SourceTitle "playchess.com"]
[Source "ChessBase"]
[SourceQuality "1"]
[TimeControl "5400+30"]

{[%evp 21,105,23,28,4,8,6,0,2,20,0,31,15,29,18,86,41,38,41,57,54,53,58,62,60,64,64,64,58,67,66,64,61,66,66,82,79,111,106,104,104,89,90,137,130,177,175,183,187,221,225,219,214,232,233,227,214,214,210,308,304,301,293,348,350,354,346,348,341,465,443,458,456,544,517,555,560,822,944,955,957,900,902,1081,1004,943,922]} 1. Nf3 {[%emt 0:00:11]} d5 {[%emt 0:00:58]} 2. g3 {[%emt 0:00:15]} Nf6 {[%emt 0:00:13]} 3. Bg2 {[%emt 0:00:10]} e6 {[%emt 0:00:06]} 4. c4 {[%emt 0:07:21]} Be7 {[%emt 0:00:41]} 5. d4 {[%emt 0:02:14]} O-O {[%emt 0:00:08]} 6. Nc3 {[%emt 0:00:04]} dxc4 {[%emt 0:00:23]} 7. Ne5 {[%emt 0:00:09]} Nc6 {[%emt 0:00:05]} 8. Bxc6 {[%emt 0:00:20]} bxc6 {[%emt 0:00:02]} 9. Nxc6 {[%emt 0:00:10]} Qe8 {[%emt 0:00:05]} 10. Nxe7+ {[%emt 0:00:10]} Qxe7 {[%emt 0:00:03]} 11. Qa4 {[%emt 0:00:23]} c5 {[%emt 0:00:09]} 12. dxc5 {[%emt 0:00:09]} Qxc5 {[%emt 0:00:24]} 13. Be3 {[%emt 0:00:17]} Qc7 {[%emt 0:00:13]} 14. f3 {[%emt 0:00:38] The position is equal.} Rd8 {[%emt 0:08:23]} 15. Kf2 {[%emt 0:08:00]} Bd7 {[%emt 0:10:05]} 16. Qa3 {[%emt 0:00:53]} Bc6 {[%emt 0:07:05]} 17. Rad1 {[%emt 0:14:39]} Qe5 {[%emt 0:07:46]} (17... Rdc8 $11 {keeps the balance.}) 18. Qc5 {[%emt 0:09:33]} (18. Bxa7 Rxd1 19. Rxd1 Qc7 $17) 18... Qxc5 {[%emt 0:03:52]} 19. Bxc5 {[%emt 0:00:09][%cal Be3c5,Bc5d6,Bd6c7][%mdl 32]} a6 {[%emt 0:00:20]} 20. e4 {[%emt 0:11:15]} Nd7 {[%emt 0:05:13][%cal Bf6d7,Bd7b6,Bb6a4,Ba4c3][%mdl 32]} 21. Bd6 {[%emt 0:02:48]} Nb6 {[%emt 0:02:52]} 22. Bc7 {[%emt 0:04:14][%csl LRb6,LRd8]} Rxd1 {[%emt 0:00:27]} 23. Rxd1 {[%emt 0:00:09]} (23. Nxd1 Na4 $11) 23... Na4 {[%emt 0:00:27]} 24. Rd6 {[%emt 0:03:41]} Nxc3 {[%emt 0:11:42]} 25. bxc3 $14 {[%emt 0:01:49][%mdl 4096] Endgame. KRB-KRB} (25. Rxc6 Nd1+ 26. Ke2 Nxb2 $16) 25... Bb5 {[%emt 0:01:55]} 26. g4 {[%emt 0:07:52]} Kf8 {[%emt 0:02:56]} 27. Rb6 {[%emt 0:01:00]} Ke7 {[%emt 0:09:54] White leaves nothing to chance now.} 28. Bb8 {[%emt 0:08:48] White is more active.} Kd8 {[%emt 0:01:56]} 29. g5 {[%emt 0:03:19]} f6 {[%emt 0:01:37]} 30. gxf6 {[%emt 0:03:50]} gxf6 {[%emt 0:00:05]} 31. Bg3 {[%emt 0:01:17]} Ke7 {[%emt 0:02:05]} (31... Bd7 $142 32. Ke3 a5) 32. Rb7+ $16 {[%emt 0:00:23]} Bd7 {[%emt 0:01:16]} (32... Kf8 $16 {was worth a try.} 33. Bh4 (33. Rxh7 Kg8 $18) 33... f5 34. exf5 (34. Rxh7 Kg8 $18) 34... exf5 35. Rxh7 Kg8) 33. Bh4 $18 {[%emt 0:01:07]} Kd6 {[%emt 0:00:52]} 34. Bxf6 {[%emt 0:00:53]} h5 {[%emt 0:01:37]} 35. Ke3 {[%emt 0:03:51]} a5 {[%emt 0:01:00]} 36. h4 {[%emt 0:04:06]} Kc6 {[%emt 0:01:20]} 37. Rb2 {[%emt 0:00:02]} Rg8 {[%emt 0:00:19]} 38. Bg5 {[%emt 0:01:07]} e5 {[%emt 0:01:42]} 39. Bf6 {[%emt 0:01:04]} Rg3 {[%emt 0:00:28]} (39... Re8 $142 40. Rg2 Re6) 40. Kf2 {[%emt 0:01:11]} ({Don't play} 40. Bxe5 Rg1 41. Rd2 Be8 $18) 40... Rg8 {[%emt 0:00:38]} 41. Bxe5 {[%emt 0:00:16]} Bh3 {[%emt 0:00:10] [#] And now ...Rg2+ would win.} 42. Ke3 {[%emt 0:00:00]} Rg1 {[%emt 0:00:00]} 43. Bd4 {[%emt 0:00:00]} Ra1 {[%emt 0:00:00]} 44. Rb6+ {[%emt 0:00:00]} Kd7 {[%emt 0:00:00]} 45. Rb5 {[%emt 0:00:00] White is clearly winning.} Rxa2 {[%emt 0:00:00]} 46. Rxh5 {[%emt 0:00:00]} Ra1 {[%emt 0:00:00]} 47. Rd5+ {[%emt 0:00:00]} Ke8 {[%emt 0:00:00]} 48. h5 {[%emt 0:00:00][%cal Bh4h5,Bh5h6][%mdl 32]} Bd7 {[%emt 0:00:00]} 49. h6 {[%emt 0:00:00]} Rh1 {[%emt 0:00:00] Prevents Rh5} 50. Bg7 {[%emt 0:00:00]} a4 {[%emt 0:00:00]} 51. Ra5 {[%emt 0:00:00]} Kd8 {[%emt 0:00:00]} 52. f4 {[%emt 0:00:00]} Kc7 {[%emt 0:00:00]} 53. Ra7+ {[%emt 0:00:00] Weighted Error Value: White=0.06 (flawless) /Black=0.24 (precise) .  Mistake:       	---       	Black=4      Inaccurate:     	White=1     	Black=4      OK:         	White=20    	Black=12     Best:        	White=2     	---} 1-0

[Event "Israel Open Championship 2023"]
[Site "Acre"]
[Date "2024.01.29"]
[Round "9.8"]
[White "Krayz, Alexander"]
[Black "Flom, Gabriel"]
[Result "1/2-1/2"]
[ECO "B31"]
[WhiteElo "2327"]
[BlackElo "2421"]
[Annotator "RC"]
[PlyCount "145"]
[EventDate "2024.01.18"]
[EventType "swiss"]
[EventCountry "ISR"]
[SourceTitle "playchess.com"]
[Source "ChessBase"]
[SourceQuality "1"]
[TimeControl "5400+30"]

1. e4 {[%emt 0:00:12]} c5 {[%emt 0:00:09]} 2. Nf3 {[%emt 0:00:05]} Nc6 {[%emt 0:00:29]} 3. Bb5 {[%emt 0:00:07]} g6 {[%emt 0:01:05]} 4. O-O {[%emt 0:00:09]} Bg7 {[%emt 0:00:03]} 5. c3 {[%emt 0:00:11]} e5 {[%emt 0:03:43]} 6. d4 {[%emt 0:01:37]} cxd4 {[%emt 0:00:27]} 7. cxd4 {[%emt 0:00:08]} exd4 {[%emt 0:00:18]} 8. Bf4 {[%emt 0:00:22]} a6 {[%emt 0:02:57]} 9. Bc4 {[%emt 0:00:59]} d6 {[%emt 0:06:09]} 10. Qb3 {[%emt 0:21:12]} Na5 {[%emt 0:04:00]} 11. Bxf7+ {[%emt 0:04:19]} Ke7 {[%emt 0:00:35]} 12. Qd5 {[%emt 0:01:01]} Nf6 {[%emt 0:00:35]} 13. Bxd6+ {[%emt 0:11:50]} Qxd6 {[%emt 0:00:13]} 14. Qxd6+ {[%emt 0:00:06]} Kxd6 {[%emt 0:00:04]} 15. e5+ {[%emt 0:00:11]} Ke7 {[%emt 0:00:25]} 16. exf6+ {[%emt 0:00:07]} Bxf6 {[%emt 0:00:07]} 17. Bd5 {[%emt 0:00:49]} Rd8 {[%emt 0:00:18]} 18. Re1+ {[%emt 0:00:52]} Kf8 {[%emt 0:01:06]} 19. Be4 {[%emt 0:01:37]} Nc4 {[%emt 0:24:19]} 20. Nbd2 {[%emt 0:00:54]} Nxd2 {[%emt 0:00:02]} 21. Nxd2 {[%emt 0:00:10]} d3 {[%emt 0:00:04]} 22. Rad1 {[%emt 0:14:02]} Bxb2 {[%emt 0:08:50]} 23. Nc4 {[%emt 0:01:08]} d2 {[%emt 0:02:57]} 24. Rxd2 {[%emt 0:02:46]} Rxd2 {[%emt 0:00:16]} 25. Nxd2 {[%emt 0:00:04]} Bc3 {[%emt 0:03:33]} 26. Re2 {[%emt 0:02:25]} Rb8 {[%emt 0:00:16]} 27. Bd5 {[%emt 0:01:45]} Bg4 {[%emt 0:01:57]} 28. Bf3 {[%emt 0:00:43]} Bxf3 {[%emt 0:02:18]} 29. Nxf3 {[%emt 0:00:15]} b5 {[%emt 0:00:28]} 30. Ng5 {[%emt 0:11:56]} h6 {[%emt 0:06:56]} 31. Ne4 {[%emt 0:01:49]} Bd4 {[%emt 0:02:35]} 32. Kf1 {[%emt 0:04:15]} Rc8 {[%emt 0:05:49]} 33. Rd2 {[%emt 0:00:14]} Rc4 {[%emt 0:00:45]} 34. Ke2 {[%emt 0:01:08]} Ke7 {[%emt 0:00:27]} 35. Kd3 {[%emt 0:03:28]} Ke6 {[%emt 0:01:51]} 36. Rc2 {[%emt 0:04:01]} Kd5 {[%emt 0:07:24]} 37. f3 {[%emt 0:00:10]} Ra4 {[%emt 0:06:08]} 38. Nd2 {[%emt 0:03:44]} Bb6 {[%emt 0:00:52]} 39. Ne4 {[%emt 0:03:55]} Ra3+ {[%emt 0:01:42]} 40. Ke2 {[%emt 0:03:49]} Bd4 {[%emt 0:00:49]} 41. Nd2 {[%emt 0:00:00]} Re3+ {[%emt 0:00:00]} 42. Kf1 {[%emt 0:00:00]} Bb6 {[%emt 0:00:00]} 43. Ne4 {[%emt 0:00:00]} Bd4 {[%emt 0:00:00]} 44. Nd2 {[%emt 0:00:00]} Ra3 {[%emt 0:00:00]} 45. Ke2 {[%emt 0:00:00]} a5 {[%emt 0:00:00]} 46. Nb1 {[%emt 0:04:55]} Re3+ {[%emt 0:00:00]} 47. Kd2 {[%emt 0:00:00]} b4 {[%emt 0:00:00]} 48. Rc8 {[%emt 0:00:00]} Bb6 {[%emt 0:00:00]} 49. Rh8 {[%emt 0:00:00]} Re6 {[%emt 0:02:07]} 50. Kd3 {[%emt 0:00:00]} Re1 {[%emt 0:02:43]} 51. Nd2 {[%emt 0:00:00]} Re3+ {[%emt 0:00:26]} 52. Kc2 {[%emt 0:00:00]} a4 {[%emt 0:01:08]} 53. Rb8 {[%emt 0:00:00]} Rc3+ {[%emt 0:02:44]} 54. Kd1 {[%emt 0:00:00]} Rc6 {[%emt 0:01:30]} 55. Ra8 {[%emt 0:00:00]} a3 {[%emt 0:00:01]} 56. Re8 {[%emt 0:00:00]} Kd4 {[%emt 0:01:46]} 57. Re4+ {[%emt 0:00:00]} Kc3 {[%emt 0:00:03]} 58. Nb1+ {[%emt 0:00:00]} Kb2 {[%emt 0:00:04]} 59. Rxb4+ {[%emt 0:00:00]} Kxa2 {[%emt 0:00:01]} 60. f4 {[%emt 0:01:55]} Be3 {[%emt 0:01:58]} 61. Ke2 {[%emt 0:01:30]} Bc1 {[%emt 0:00:55]} 62. Kd3 {[%emt 0:00:51]} Bb2 {[%emt 0:00:18]} 63. Nd2 {[%emt 0:00:11]} Rc3+ {[%emt 0:00:15]} 64. Ke2 {[%emt 0:00:17]} Rc1 {[%emt 0:00:07]} 65. Rb6 {[%emt 0:01:48]} Rc2 {[%emt 0:00:54]} 66. Kd3 {[%emt 0:00:10]} Rc3+ {[%emt 0:00:03]} 67. Ke2 {[%emt 0:00:06]} Bc1 {[%emt 0:00:33]} 68. Rxg6 {[%emt 0:01:34]} Bxd2 {[%emt 0:00:15]} 69. Kxd2 {[%emt 0:00:04]} Kb2 {[%emt 0:00:34]} 70. Rxh6 {[%emt 0:00:52]} a2 {[%emt 0:00:47]} 71. Rb6+ {[%emt 0:01:08]} Rb3 {[%emt 0:00:05]} 72. Ra6 {[%emt 0:00:03]} Ra3 {[%emt 0:01:59]} 73. Rb6+ {[%emt 0:00:02]} 1/2-1/2

[Event "Israel Open Championship 2023"]
[Site "Acre"]
[Date "2024.01.29"]
[Round "9.9"]
[White "Levin, Guy"]
[Black "Sitbon, Itay"]
[Result "1-0"]
[ECO "E01"]
[WhiteElo "2435"]
[BlackElo "2213"]
[Annotator "RC"]
[PlyCount "159"]
[EventDate "2024.01.18"]
[EventType "swiss"]
[EventCountry "ISR"]
[SourceTitle "playchess.com"]
[Source "ChessBase"]
[SourceQuality "1"]
[TimeControl "5400+30"]

1. c4 {[%emt 0:00:10]} Nf6 {[%emt 0:00:08]} 2. Nf3 {[%emt 0:00:55]} e6 {[%emt 0:00:09]} 3. g3 {[%emt 0:06:04]} d5 {[%emt 0:00:19]} 4. Bg2 {[%emt 0:00:05]} Be7 {[%emt 0:00:10]} 5. O-O {[%emt 0:00:08]} O-O {[%emt 0:00:04]} 6. d3 {[%emt 0:00:05]} c5 {[%emt 0:01:51]} 7. cxd5 {[%emt 0:00:25]} Nxd5 {[%emt 0:00:07]} 8. d4 {[%emt 0:09:54]} Nc6 {[%emt 0:01:02]} 9. dxc5 {[%emt 0:02:54]} Bxc5 {[%emt 0:00:21]} 10. a3 {[%emt 0:00:02]} Nf6 {[%emt 0:12:49]} 11. Qc2 {[%emt 0:02:34]} Bb6 {[%emt 0:02:37]} 12. Nc3 {[%emt 0:03:37]} h6 {[%emt 0:04:32]} 13. Na4 {[%emt 0:09:52]} Bc7 {[%emt 0:12:28]} 14. Be3 {[%emt 0:02:09]} Qe7 {[%emt 0:03:32]} 15. Rfd1 {[%emt 0:07:42]} Bd6 {[%emt 0:03:50]} 16. b4 {[%emt 0:05:18]} Nd5 {[%emt 0:06:03]} 17. Bd2 {[%emt 0:08:03]} Bd7 {[%emt 0:05:47]} 18. e4 {[%emt 0:02:04]} Rac8 {[%emt 0:01:51]} 19. Qb3 {[%emt 0:05:54]} Nf6 {[%emt 0:06:03]} 20. b5 {[%emt 0:02:14]} Ne5 {[%emt 0:01:26]} 21. Nxe5 {[%emt 0:00:53]} Bxe5 {[%emt 0:00:01]} 22. Bb4 {[%emt 0:00:13]} Qe8 {[%emt 0:04:27]} 23. Rac1 {[%emt 0:06:30]} Rxc1 {[%emt 0:00:26]} 24. Rxc1 {[%emt 0:00:02]} Bxb5 {[%emt 0:00:44]} 25. Bxf8 {[%emt 0:00:29]} Bxa4 {[%emt 0:03:14]} 26. Qb4 {[%emt 0:00:15]} Bc6 {[%emt 0:01:18]} 27. Bc5 {[%emt 0:04:53]} a6 {[%emt 0:00:06]} 28. Rd1 {[%emt 0:01:24]} Kh7 {[%emt 0:02:42]} 29. Bb6 {[%emt 0:05:18]} Nd7 {[%emt 0:00:58]} 30. Bd4 {[%emt 0:03:50]} Bxd4 {[%emt 0:01:03]} 31. Rxd4 {[%emt 0:00:50]} e5 {[%emt 0:00:10]} 32. Rd6 {[%emt 0:00:54]} Nf6 {[%emt 0:03:46]} 33. Bh3 {[%emt 0:01:00]} Qe7 {[%emt 0:01:12]} 34. f3 {[%emt 0:00:18]} g6 {[%emt 0:01:11]} 35. Rd2 {[%emt 0:03:53]} Qc7 {[%emt 0:01:51]} 36. Qc5 {[%emt 0:00:11]} Kg7 {[%emt 0:04:51]} 37. Rd6 {[%emt 0:01:40]} Ne8 {[%emt 0:00:27]} 38. Rd2 {[%emt 0:00:03]} Nf6 {[%emt 0:01:01]} 39. Kf2 {[%emt 0:01:13]} Qb8 {[%emt 0:02:03]} 40. Rd6 {[%emt 0:01:50]} Qe8 {[%emt 0:01:29]} 41. Qb6 {[%emt 0:03:10]} Qe7 {[%emt 0:01:27]} 42. Qd8 {[%emt 0:01:13]} Qxd8 {[%emt 0:00:10]} 43. Rxd8 {[%emt 0:00:01]} h5 {[%emt 0:02:54]} 44. Bc8 {[%emt 0:00:00]} g5 {[%emt 0:00:00]} 45. h4 {[%emt 0:00:00]} g4 {[%emt 0:00:00]} 46. Bf5 {[%emt 0:00:00]} gxf3 {[%emt 0:00:00]} 47. Kxf3 {[%emt 0:00:00]} Kh6 {[%emt 0:00:00]} 48. Ke3 {[%emt 0:00:00]} Kg7 {[%emt 0:00:00]} 49. Kd3 {[%emt 0:00:00]} Bb5+ {[%emt 0:00:00]} 50. Kd2 {[%emt 0:00:00]} Bc6 {[%emt 0:00:00]} 51. Ke3 {[%emt 0:00:00]} Kh6 {[%emt 0:00:00]} 52. Rd6 {[%emt 0:00:00]} Kg7 {[%emt 0:00:00]} 53. Bc8 {[%emt 0:00:00]} Ne8 {[%emt 0:00:00]} 54. Rxc6 {[%emt 0:00:00]} bxc6 {[%emt 0:00:00]} 55. Bxa6 {[%emt 0:00:00]} Nd6 {[%emt 0:00:00]} 56. a4 {[%emt 0:00:00]} f5 {[%emt 0:00:00]} 57. exf5 {[%emt 0:00:12]} Nxf5+ {[%emt 0:00:00]} 58. Kf2 {[%emt 0:00:26]} Nd6 {[%emt 0:00:00]} 59. a5 {[%emt 0:00:31]} c5 {[%emt 0:00:00]} 60. Be2 {[%emt 0:01:12]} Kg6 {[%emt 0:00:00]} 61. a6 {[%emt 0:00:13]} Nc8 {[%emt 0:00:00]} 62. Ke3 {[%emt 0:00:11]} Na7 {[%emt 0:00:00]} 63. Ke4 {[%emt 0:00:23]} Nc6 {[%emt 0:00:00]} 64. Kd5 {[%emt 0:00:46]} Nb4+ {[%emt 0:00:27]} 65. Kxc5 {[%emt 0:01:12]} Nxa6+ {[%emt 0:00:04]} 66. Bxa6 {[%emt 0:00:05]} Kf5 {[%emt 0:00:08]} 67. Be2 {[%emt 0:00:08]} Kg6 {[%emt 0:00:35]} 68. Kd5 {[%emt 0:00:06]} e4 {[%emt 0:00:14]} 69. Kxe4 {[%emt 0:00:06]} Kh6 {[%emt 0:00:03]} 70. Kf5 {[%emt 0:00:06]} Kg7 {[%emt 0:00:04]} 71. Bxh5 {[%emt 0:00:06]} Kh6 {[%emt 0:00:04]} 72. g4 {[%emt 0:00:06]} Kg7 {[%emt 0:00:03]} 73. g5 {[%emt 0:00:05]} Kh7 {[%emt 0:00:01]} 74. Bd1 {[%emt 0:00:07]} Kg7 {[%emt 0:00:01]} 75. h5 {[%emt 0:00:05]} Kh7 {[%emt 0:00:11]} 76. h6 {[%emt 0:00:07]} Kh8 {[%emt 0:00:01]} 77. g6 {[%emt 0:00:14]} Kg8 {[%emt 0:00:01]} 78. Bb3+ {[%emt 0:00:12]} Kh8 {[%emt 0:00:01]} 79. g7+ {[%emt 0:00:24]} Kh7 {[%emt 0:00:01]} 80. g8=Q+ {[%emt 0:00:08]} 1-0

[Event "Israel Open Championship 2023"]
[Site "Acre"]
[Date "2024.01.29"]
[Round "9.10"]
[White "Zemach, Nadav"]
[Black "Gavriely, Or"]
[Result "1-0"]
[ECO "D78"]
[WhiteElo "2384"]
[BlackElo "2106"]
[Annotator "RC"]
[PlyCount "153"]
[EventDate "2024.01.18"]
[EventType "swiss"]
[EventCountry "ISR"]
[SourceTitle "playchess.com"]
[Source "ChessBase"]
[SourceQuality "1"]
[TimeControl "5400+30"]

1. d4 {[%emt 0:00:25]} Nf6 {[%emt 1:31:00]} 2. c4 {[%emt 0:00:10]} c6 {[%emt 0:00:00]} 3. Nf3 {[%emt 1:31:25]} d5 {[%emt 0:00:00]} 4. g3 {[%emt 0:00:00]} g6 {[%emt 0:00:00]} 5. Bg2 {[%emt 0:00:00]} Bg7 {[%emt 0:00:00]} 6. O-O {[%emt 0:00:00]} O-O {[%emt 0:00:00]} 7. a4 {[%emt 0:00:00]} Ne4 {[%emt 0:00:00]} 8. Nc3 {[%emt 0:00:00]} f5 {[%emt 0:00:00]} 9. Bf4 {[%emt 0:00:00]} e6 {[%emt 0:00:00]} 10. Rc1 {[%emt 0:00:00]} Nd7 {[%emt 0:00:00]} 11. Ne5 {[%emt 0:00:00]} Qb6 {[%emt 0:00:00]} 12. Nxe4 {[%emt 0:00:00]} Nxe5 {[%emt 0:00:00]} 13. Nf6+ {[%emt 0:00:00]} Bxf6 {[%emt 0:00:00]} 14. dxe5 {[%emt 0:00:00]} Be7 {[%emt 0:00:00]} 15. Qc2 {[%emt 0:00:00]} Rd8 {[%emt 0:00:00]} 16. Rfd1 {[%emt 0:00:00]} Bd7 {[%emt 0:00:00]} 17. h4 {[%emt 0:00:00]} Be8 {[%emt 0:00:00]} 18. cxd5 {[%emt 0:00:00]} cxd5 {[%emt 0:00:00]} 19. Qc7 {[%emt 0:00:00]} Qxc7 {[%emt 0:00:00]} 20. Rxc7 {[%emt 0:00:00]} Rd7 {[%emt 0:00:00]} 21. Rc2 {[%emt 0:00:00]} Rdd8 {[%emt 0:00:00]} 22. Rdc1 {[%emt 0:00:00]} Bc6 {[%emt 0:00:00]} 23. Bf1 {[%emt 0:00:00]} Rd7 {[%emt 0:00:00]} 24. b3 {[%emt 0:00:00]} d4 {[%emt 0:00:00]} 25. Bg2 {[%emt 0:00:00]} Bxg2 {[%emt 0:00:00]} 26. Kxg2 {[%emt 0:00:00]} Rad8 {[%emt 0:00:00]} 27. Rd1 {[%emt 0:00:00]} Kg7 {[%emt 0:00:00]} 28. Rd3 {[%emt 0:00:00]} h6 {[%emt 0:00:00]} 29. Bc1 {[%emt 0:00:00]} g5 {[%emt 0:00:00]} 30. h5 {[%emt 0:00:00]} Kf7 {[%emt 0:00:00]} 31. Rc4 {[%emt 0:00:00]} Ke8 {[%emt 0:00:00]} 32. Bb2 {[%emt 0:00:00]} a6 {[%emt 0:00:00]} 33. f4 {[%emt 0:00:00]} Rd5 {[%emt 0:00:00]} 34. Kf1 {[%emt 0:00:00]} g4 {[%emt 0:00:32]} 35. Ke1 {[%emt 0:00:27]} Bc5 {[%emt 0:00:52]} 36. Kd1 {[%emt 0:00:31]} b5 {[%emt 0:02:10]} 37. axb5 {[%emt 0:01:19]} axb5 {[%emt 0:00:00]} 38. Rc1 {[%emt 0:00:28]} Kd7 {[%emt 0:00:52]} 39. Kc2 {[%emt 0:01:42]} b4 {[%emt 0:01:49]} 40. Rcd1 {[%emt 0:06:19]} Kc6 {[%emt 0:00:11]} 41. R3d2 {[%emt 0:02:03]} Kb5 {[%emt 0:01:40]} 42. Kd3 {[%emt 0:00:08]} R5d7 {[%emt 0:02:42]} 43. Ra1 {[%emt 0:02:27]} Bb6 {[%emt 0:00:23]} 44. Rc2 {[%emt 0:00:23]} Bc5 {[%emt 0:00:00]} 45. Bc1 {[%emt 0:00:00]} Rb7 {[%emt 0:00:00]} 46. Bd2 {[%emt 0:00:00]} Rdb8 {[%emt 0:00:00]} 47. Be1 {[%emt 0:00:00]} Rc7 {[%emt 0:00:00]} 48. Rc4 {[%emt 0:00:00]} Rcb7 {[%emt 0:00:00]} 49. Bf2 {[%emt 0:00:00]} Rd7 {[%emt 0:00:00]} 50. Ra4 {[%emt 0:00:00]} Kc6 {[%emt 0:00:00]} 51. Ra6+ {[%emt 0:00:00]} Rb6 {[%emt 0:00:00]} 52. Rxb6+ {[%emt 0:00:00]} Kxb6 {[%emt 0:00:00]} 53. Bxd4 {[%emt 0:00:00]} Bxd4 {[%emt 0:00:00]} 54. Rxb4+ {[%emt 0:00:00]} Kc5 {[%emt 0:00:22]} 55. Rc4+ {[%emt 0:00:00]} Kb5 {[%emt 0:00:09]} 56. Rxd4 {[%emt 0:00:00]} Ra7 {[%emt 0:00:11]} 57. Rd6 {[%emt 0:00:00]} Ra1 {[%emt 0:00:05]} 58. Ke3 {[%emt 0:00:00]} Rh1 {[%emt 0:01:09]} 59. Rxe6 {[%emt 0:00:00]} Rxh5 {[%emt 0:00:01]} 60. Rd6 {[%emt 0:00:00]} Rh3 {[%emt 0:00:26]} 61. Kf2 {[%emt 0:00:00]} h5 {[%emt 0:00:51]} 62. e6 {[%emt 0:00:00]} h4 {[%emt 0:00:01]} 63. gxh4 {[%emt 0:00:00]} Rxb3 {[%emt 0:00:01]} 64. Rd3 {[%emt 0:00:00]} Rb4 {[%emt 0:00:01]} 65. Rd5+ {[%emt 0:00:00]} Kc6 {[%emt 0:00:06]} 66. Re5 {[%emt 0:00:00]} Rb8 {[%emt 0:00:42]} 67. Rxf5 {[%emt 0:00:00]} Kd6 {[%emt 0:00:12]} 68. Re5 {[%emt 0:00:00]} Ke7 {[%emt 0:00:07]} 69. Kg3 {[%emt 0:00:00]} Rg8 {[%emt 0:00:10]} 70. e4 {[%emt 0:00:00]} Rg6 {[%emt 0:00:12]} 71. f5 {[%emt 0:00:00]} Rg8 {[%emt 0:00:03]} 72. Rb5 {[%emt 0:00:00]} Kf6 {[%emt 0:00:06]} 73. Rb7 {[%emt 0:00:00]} Ra8 {[%emt 0:01:03]} 74. Rf7+ {[%emt 0:00:00]} Ke5 {[%emt 0:00:01]} 75. e7 {[%emt 0:00:00]} Kd6 {[%emt 0:00:33]} 76. f6 {[%emt 0:00:00]} Ra3+ {[%emt 0:00:22]} 77. Kxg4 {[%emt 0:03:17]} 1-0